fUST/lending_fUST_20240501
["ID","MTS","AMOUNT","RATE_DAILY","PERIOD"]
[325176285,1714548663443,-500.0,0.00068493,120]
[325176286,1714548663453,-500.0,0.00068493,120]
[325176287,1714548663463,-500.0,0.00068493,120]
[325176288,1714548663472,-585.26,0.00068493,120]
[325176289,1714548663482,-450.45643041,0.00068493,120]
[325176290,1714548663499,-500.0,0.00068493,120]
[325176291,1714548663508,-500.0,0.00068493,120]
[325176292,1714548663518,-431.26278848,0.00068493,120]
[325176293,1714548663527,-500.0,0.00068493,120]
[325176294,1714548663536,-241.05772642,0.00068493,120]
[325176295,1714548663546,-500.0,0.00068493,120]
[325176296,1714548663555,-2045.55,0.00068493,120]
[325176297,1714548663564,-500.0,0.00068493,120]
[325176298,1714548663574,-500.0,0.00068493,120]
[325176299,1714548663583,-506.19,0.00068493,120]
[325176300,1714548663593,-500.0,0.00068493,120]
[325176301,1714548663603,-501.40658655,0.00068493,120]
[325176302,1714548663612,-500.0,0.00068493,120]
[325176303,1714548663621,-500.0,0.00068493,120]
[325176304,1714548663631,-500.0,0.00068493,120]
[325176305,1714548663640,-514.23066112,0.00068493,120]
[325176306,1714548663649,-585.83,0.00068493,120]
[325176307,1714548663658,-500.0,0.00068493,120]
[325176308,1714548663668,-1038.85,0.00068493,120]
[325176309,1714548663678,-500.0,0.00068493,120]
[325176310,1714548663688,-243.76330396,0.00068493,120]
[325176311,1714548663698,-500.0,0.00068493,120]
[325176312,1714548663708,-1947.99,0.00068493,120]
[325176313,1714548663718,-500.0,0.00068493,120]
[325176314,1714548663727,-500.0,0.00068493,120]
[325176315,1714548663742,-500.0,0.00068493,120]
[325176316,1714548663751,-500.0,0.00068493,120]
[325176317,1714548663761,-500.0,0.00068493,120]
[325176318,1714548663770,-500.0,0.00068493,120]
[325176319,1714548663780,-500.0,0.00068493,120]
[325176320,1714548663790,-503.99982355,0.00068493,120]
[325176321,1714548663799,-500.0,0.00068493,120]
[325176322,1714548663809,-25152.44,0.00068493,120]
[325176323,1714548663819,-500.0,0.00068493,120]
[325176324,1714548663828,-500.0,0.00068493,120]
[325176325,1714548663838,-601.73,0.00068493,120]
[325176326,1714548663847,-601.73,0.00068493,120]
[325176327,1714548663857,-601.73,0.00068493,120]
[325176328,1714548663866,-601.73,0.00068493,120]
[325176329,1714548663876,-601.73,0.00068493,120]
[325176330,1714548663885,-13490.46,0.00068493,120]
[325176331,1714548663895,-956.85,0.00068493,120]
[325176332,1714548663904,-500.0,0.00068493,120]
[325176333,1714548663914,-2083.37,0.00068493,120]
[325176334,1714548663924,-500.0,0.00068493,120]
[325176335,1714548663933,-2107.87,0.00068493,120]
[325176336,1714548663942,-500.0,0.00068493,120]
[325176337,1714548663952,-500.0,0.00068493,120]
[325176338,1714548663964,-3805.31,0.00068493,120]
[325176339,1714548663980,-500.0,0.00068493,120]
[325176340,1714548663995,-437.71926235,0.00068493,120]
[325176341,1714548664004,-500.0,0.00068493,120]
[325176342,1714548664014,-500.0,0.00068493,120]
[325176343,1714548664024,-500.0,0.00068493,120]
[325176344,1714548664034,-500.0,0.00068493,120]
[325176345,1714548664043,-523.86,0.00068493,120]
[325176346,1714548664053,-500.0,0.00068493,120]
[325176347,1714548664063,-500.0,0.00068493,120]
[325176348,1714548664073,-6069.63,0.00068493,2]
[325176349,1714548664083,-500.0,0.00068493,120]
[325176350,1714548664092,-500.0,0.00068493,120]
[325176351,1714548664103,-500.0,0.00068493,120]
[325176352,1714548664113,-500.0,0.00068493,120]
[325176353,1714548664123,-500.0,0.00068493,120]
[325176354,1714548664133,-2266.06,0.00068493,120]
[325176355,1714548664142,-500.0,0.00068493,120]
[325176356,1714548664151,-569.26318745,0.00068493,120]
[325176357,1714548664161,-500.0,0.00068493,120]
[325176358,1714548664171,-500.0,0.00068493,120]
[325176359,1714548664181,-500.0,0.00068493,120]
[325176360,1714548664191,-500.0,0.00068493,120]
[325176361,1714548664200,-500.0,0.00068493,120]
[325176362,1714548664210,-500.0,0.00068493,120]
[325176363,1714548664219,-500.0,0.00068493,120]
[325176364,1714548664228,-500.0,0.00068493,120]
[325176365,1714548664240,-500.0,0.00068493,120]
[325176366,1714548664250,-505.30964126,0.00068493,120]
[325176367,1714548664260,-500.0,0.00068493,120]
[325176368,1714548664270,-500.0,0.00068493,120]
[325176369,1714548664279,-500.0,0.00068493,120]
[325176370,1714548664289,-500.0,0.00068493,120]
[325176371,1714548664298,-506.1379467,0.00068493,120]
[325176372,1714548664308,-8649.1,0.00068493,120]
[325176373,1714548664318,-502.64532095,0.00068493,120]
[325176374,1714548664328,-500.0,0.00068493,120]
[325176375,1714548664337,-500.0,0.00068493,120]
[325176376,1714548664347,-500.0,0.00068493,120]
[325176377,1714548664356,-500.0,0.00068493,120]
[325176378,1714548664366,-815.38,0.00068493,120]
[325176379,1714548664376,-3757.12,0.00068493,120]
[325176380,1714548664386,-500.0,0.00068493,120]
[325176381,1714548664395,-500.0,0.00068493,120]
[325176382,1714548664406,-500.0,0.00068493,120]
[325176383,1714548664415,-887.21,0.00068493,2]
[325176384,1714548664425,-500.0,0.00068493,120]
[325176385,1714548664434,-500.0,0.00068493,120]
[325176386,1714548664444,-892.02,0.00068493,120]
[325176387,1714548664453,-1519.95,0.00068493,120]
[325176388,1714548664463,-500.0,0.00068493,120]
[325176389,1714548664472,-500.0,0.00068493,120]
[325176390,1714548664482,-500.0,0.00068493,120]
[325176391,1714548664499,-500.0,0.00068493,120]
[325176392,1714548664509,-4690.05,0.00068493,120]
[325176393,1714548664519,-500.0,0.00068493,120]
[325176394,1714548664529,-500.0,0.00068493,120]
[325176395,1714548664540,-503.95816458,0.00068493,120]
[325176396,1714548664551,-1985.45,0.00068493,120]
[325176397,1714548664561,-413.86804077,0.00068493,120]
[325176398,1714548664571,-500.0,0.00068493,120]
[325176399,1714548664580,-502.22030365,0.00068493,120]
[325176400,1714548664590,-500.0,0.00068493,120]
[325176401,1714548664599,-500.0,0.00068493,120]
[325176402,1714548664608,-500.0,0.00068493,120]
[325176403,1714548664618,-500.0,0.00068493,60]
[325176404,1714548664627,-500.0,0.00068493,120]
[325176405,1714548664636,-500.0,0.00068493,120]
[325176406,1714548664646,-511.76493726,0.00068493,120]
[325176407,1714548664655,-500.0,0.00068493,120]
[325176408,1714548664665,-500.0,0.00068493,120]
[325176409,1714548664674,-672.61,0.00068493,120]
[325176410,1714548664684,-500.0,0.00068493,120]
[325176411,1714548664694,-500.0,0.00068493,120]
[325176412,1714548664703,-501.23188969,0.00068493,120]
[325176413,1714548664712,-500.0,0.00068493,120]
[325176414,1714548664722,-294.99521183,0.00068493,120]
[325176415,1714548664731,-624.28077104,0.00068493,120]
[325176416,1714548664747,-9517.8,0.00068493,120]
[325176417,1714548664757,-562.93940027,0.00068493,120]
[325176418,1714548664767,-501.99004935,0.00068493,120]
[325176419,1714548664777,-501.65379551,0.00068493,120]
[325176420,1714548664788,-500.0,0.00068493,120]
[325176421,1714548664797,-500.0,0.00068493,120]
[325176422,1714548664807,-500.0,0.00068493,120]
[325176423,1714548664817,-500.0,0.00068493,120]
[325176424,1714548664827,-1245.59,0.00068493,120]
[325176425,1714548664837,-500.0,0.00068493,120]
[325176426,1714548664846,-818.81,0.00068493,21]
[325176427,1714548664856,-3687.26,0.00068493,120]
[325176428,1714548664865,-500.0,0.00068493,120]
[325176429,1714548664875,-500.0,0.00068493,120]
[325176430,1714548664884,-500.0,0.00068493,120]
[325176431,1714548664894,-502.75744941,0.00068493,120]
[325176432,1714548664904,-500.0,0.00068493,120]
[325176433,1714548664914,-500.0,0.00068493,120]
[325176434,1714548664924,-500.0,0.00068493,120]
[325176435,1714548664933,-322.74146698,0.00068493,120]
[325176436,1714548664943,-6028.16,0.00068493,120]
[325176437,1714548664952,-500.0,0.00068493,120]
[325176438,1714548664961,-500.0,0.00068493,120]
[325176439,1714548664970,-2384.83,0.00068493,120]
[325176440,1714548664980,-503.53231229,0.00068493,120]
[325176441,1714548664998,-500.0,0.00068493,120]
[325176442,1714548665009,-18822.58,0.00068493,120]
[325176443,1714548665019,-500.0,0.00068493,120]
[325176444,1714548665029,-2102.18,0.00068493,120]
[325176445,1714548665039,-500.0,0.00068493,120]
[325176446,1714548665049,-500.0,0.00068493,120]
[325176447,1714548665059,-500.0,0.00068493,120]
[325176448,1714548665069,-151.0,0.00068575,120]
[325176449,1714548665078,-500.0,0.000686,120]
[325176450,1714548665089,-37780.1537823,0.0006888,120]
[325176451,1714548665757,-272.74470342,0.00049811,4]
[325176452,1714548665767,-17.25529658,0.00049812,4]
[325176453,1714548665779,-190.1871099,0.00049812,4]
[325176454,1714548665788,-475.09554107,0.00054795,120]
[325176455,1714548665798,-475.09554107,0.00054795,120]
[325176456,1714548665807,-475.09554107,0.00054795,120]
[325176457,1714548665817,-475.09554107,0.00054795,120]
[325176458,1714548665827,-475.09554107,0.00054795,120]
[325176459,1714548665837,-475.09554107,0.00054795,120]
[325176460,1714548665846,-475.09554107,0.00054795,120]
[325176461,1714548665856,-475.09554107,0.00054795,120]
[325176462,1714548665866,-475.09554107,0.00054795,120]
[325176463,1714548665875,-475.09554107,0.00054795,120]
[325176464,1714548665885,-475.09554107,0.00054795,120]
[325176465,1714548665896,-4583.76193833,0.00057524,3]
[325176466,1714548666115,265.73519084,9.999e-05,7]
[325176467,1714548667106,718.44665129,0.00020913,2]
[325176468,1714548668978,939.61631274,0.00020913,2]
[325176469,1714548682882,939.08290302,0.00020913,2]
[325176470,1714548683264,312.97578303,0.00015,2]
[325176471,1714548683741,2828.22602088,0.00020913,2]
[325176472,1714548697243,312.75208222,0.00020913,2]
[325176474,1714548698718,355.25675146,0.00020913,2]
[325176475,1714548700182,224.35024444,0.00020913,7]
[325176477,1714548737430,1564.49780022,0.00020913,2]
[325176478,1714548751416,1564.49780022,0.00020913,2]
[325176479,1714548762584,154.84515485,0.00020913,2]
[325176480,1714548773434,1564.49780022,0.00020913,2]
[325176481,1714548791534,1564.49780022,0.00020913,2]
[325176482,1714548809433,1267.74682191,0.00020913,2]
[325176483,1714548859948,612.5,0.00020913,2]
[325176484,1714548873036,225.33552172,0.00019178,2]
[325176485,1714548911869,157.0,0.000275,2]
[325176486,1714549018556,189.426794,0.00018,2]
[325176487,1714549036552,189.426794,0.00020913,2]
[325176488,1714549040873,1622.14156305,9.999e-05,2]
[325176489,1714549054511,189.88906116,0.00020913,2]
[325176490,1714549054851,196.67646326,0.00020913,2]
[325176491,1714549082302,2627.08475898,0.00020913,2]
[325176492,1714549082685,362.38148801,0.00020913,2]
[325176493,1714549082936,472.95493354,0.00020913,2]
[325176494,1714549082967,283.95389061,0.00020913,2]
[325176495,1714549085753,364.65270802,0.00020913,2]
[325176496,1714549086449,1880.12188062,0.00024382,2]
[325176497,1714549088800,41810.71645875,0.00026848,2]
[325176498,1714549093904,3055.60447089,0.00020913,2]
[325176499,1714549094774,1576.98678225,9.999e-05,2]
[325176500,1714549100968,2590.79776208,0.00020913,2]
[325176501,1714549107967,514.39558646,0.00020913,2]
[325176502,1714549113267,522.20590757,0.00020913,2]
[325176503,1714549117159,20200.60362902,0.00020913,2]
[325176504,1714549120422,7875.36127702,0.00020913,2]
[325176505,1714549123034,3051.58762507,0.00020913,2]
[325176506,1714549127179,891.03583559,0.00020913,2]
[325176507,1714549131032,1313.3815191,0.00020913,2]
[325176512,1714549239365,8408.03960495,0.00020913,2]
[325176513,1714549239390,50000.0,0.00020913,2]
[325176526,1714549361264,154.67518212,9.999e-05,2]
[325176529,1714549439651,3000.0,0.00019909,2]
[325176530,1714549485741,24900.0,0.00019884,2]
[325176531,1714549525237,2686.858814,0.00019871,2]
[325176532,1714549542659,1273.2424305,0.0001986,2]
[325176533,1714549589696,17985.22357338,0.00019848,2]
[325176551,1714549630087,-492.8944093,0.00019846,2]
[325176552,1714549640146,-1531.5089034,0.00019845,2]
[325176553,1714549649108,-529.36908946,0.00019845,2]
[325176554,1714549700793,730.81737118,0.000138,2]
[325176555,1714549716462,700.70596004,9.999e-05,2]
[325176556,1714549720185,769.1530622,0.0001,2]
[325176557,1714549720454,235.8677462,9.999e-05,2]
[325176558,1714549722512,550.1739942,9.999e-05,2]
[325176559,1714549723067,1880.12188062,9.999e-05,2]
[325176560,1714549723897,2101.71813346,0.00015,2]
[325176561,1714549727543,283.95389061,9.999e-05,2]
[325176562,1714549727582,526.99118961,9.999e-05,2]
[325176563,1714549728928,520.59853225,9.999e-05,2]
[325176564,1714549729376,469.01811337,9.999e-05,2]
[325176565,1714549730973,475.32221455,9.999e-05,2]
[325176566,1714549731248,308.89684042,9.999e-05,2]
[325176567,1714549738716,193.87010555,9.999e-05,2]
[325176568,1714549739435,472.95493354,9.999e-05,2]
[325176569,1714549743858,565.13944552,9.999e-05,2]
[325176570,1714549749884,1576.98678225,9.999e-05,2]
[325176571,1714549752337,-1682.8508983,0.00017595,2]
[325176572,1714549752358,-6113.6481501,0.00017595,2]
[325176573,1714549752378,-767.97410582,0.00017998,2]
[325176574,1714549752396,-294.37899144,0.00018496,2]
[325176575,1714549753839,522.20590757,9.999e-05,2]
[325176576,1714549755332,157.99223186,9.999e-05,2]
[325176577,1714549756103,-1892.26874616,0.00017594,2]
[325176578,1714549756124,-7580.98228558,0.00018496,2]
[325176579,1714549756144,-2627.08475898,0.00018497,2]
[325176580,1714549756163,-1622.14156305,0.00018497,2]
[325176581,1714549756182,-891.03583559,0.00018498,2]
[325176582,1714549756199,-2392.92958612,0.00018499,2]
[325176583,1714549761092,-250.00871116,0.00018878,2]
[325176584,1714549763444,194.06678592,0.00013,2]
[325176585,1714549765405,258.12670995,9.999e-05,2]
[325176586,1714549765424,67.86470718,9.999e-05,2]
[325176587,1714549765446,1166.10583587,9.999e-05,2]
[325176588,1714549768048,928.84070559,0.00014,2]
[325176589,1714549768088,460.2591171,9.999e-05,2]
[325176590,1714549768528,19202.35106111,9.999e-05,2]
[325176591,1714549768979,154.78330338,9.999e-05,2]
[325176592,1714549769112,-874.55831757,0.00018877,2]
[325176593,1714549774452,189.3964787,9.999e-05,2]
[325176594,1714549774480,219.94730467,9.999e-05,2]
[325176595,1714549774523,1343.26013889,9.999e-05,2]
[325176596,1714549776686,206.3030976,9.999e-05,2]
[325176597,1714549779557,314.85282276,9.999e-05,2]
[325176598,1714549779826,154.78330338,9.999e-05,2]
[325176599,1714549783382,154.78330338,0.000137,2]
[325176600,1714549784391,981.8517699,9.999e-05,2]
[325176601,1714549784530,19202.35106111,9.999e-05,2]
[325176602,1714549784957,5810.00596259,9.999e-05,2]
[325176603,1714549786285,154.78330338,9.999e-05,2]
[325176604,1714549789224,362.38148801,9.999e-05,2]
[325176605,1714549792688,683.41665733,9.999e-05,2]
[325176606,1714549794388,154.78330338,9.999e-05,2]
[325176607,1714549802630,13062.10948072,9.999e-05,2]
[325176608,1714549803352,154.78330338,9.999e-05,2]
[325176609,1714549806149,154.76784823,9.999e-05,2]
[325176610,1714549806472,4180.86118015,9.999e-05,2]
[325176611,1714549808477,1091.78088148,9.999e-05,2]
[325176612,1714549812244,154.76784823,9.999e-05,2]
[325176613,1714549813428,154.76784823,9.999e-05,2]
[325176614,1714549814188,369.74029441,0.00016986,2]
[325176615,1714549818019,574.47844305,9.999e-05,2]
[325176616,1714549819249,208.1490103,9.999e-05,2]
[325176617,1714549821208,186.35993728,9.999e-05,2]
[325176618,1714549823279,154.76784823,9.999e-05,2]
[325176619,1714549824533,7396.20325034,9.999e-05,2]
[325176620,1714549825236,200.12196174,9.999e-05,2]
[325176621,1714549830497,1678.22103741,0.00015,2]
[325176725,1714549833927,212.32996443,9.999e-05,2]
[325177032,1714549838970,-514.39558646,0.00017528,2]
[325177034,1714549838980,-730.81737118,0.00017528,2]
[325177036,1714549838991,-1018.78457112,0.00017529,2]
[325177039,1714549839002,-59.42393668,0.00017529,2]
[325177041,1714549839012,-460.2591171,0.00017929,2]
[325177043,1714549839022,-54.31694622,0.00017929,2]
[325177046,1714549839043,-15622.17834549,0.00017929,2]
[325177048,1714549839053,-20200.60362902,0.00017929,2]
[325177050,1714549839063,-7875.36127702,0.00017929,2]
[325177052,1714549839073,-9378.45996285,0.00017929,2]
[325177054,1714549839082,-1622.14156305,0.00017929,2]
[325177056,1714549839091,-1576.98678225,0.0001793,2]
[325177058,1714549839101,-891.03583559,0.0001793,2]
[325177060,1714549839111,-157.99223186,0.0001793,2]
[325177062,1714549839120,-2392.92958612,0.0001793,2]
[325177064,1714549839129,-1892.26874616,0.0001793,2]
[325177066,1714549839138,-2627.08475898,0.0001793,2]
[325177068,1714549839147,-2781.69529347,0.00017931,2]
[325177069,1714549839156,-193.87010555,0.00017931,2]
[325177071,1714549839165,-475.32221455,0.00017932,2]
[325177073,1714549839175,-472.95493354,0.00017932,2]
[325177074,1714549839184,-283.95389061,0.00017932,2]
[325177076,1714549839197,-526.99118961,0.00017932,2]
[325177077,1714549839206,-939.61631274,0.00017932,2]
[325177078,1714549839215,-154.76784823,0.00017932,2]
[325177079,1714549839224,-1880.12188062,0.00017933,2]
[325177080,1714549839234,-2101.71813346,0.00017933,2]
[325177081,1714549839244,-771.73283885,0.00017933,2]
[325177082,1714549839254,-520.59853225,0.00017933,2]
[325177083,1714549839263,-308.89684042,0.00017933,2]
[325177085,1714549839273,-235.8677462,0.00017934,2]
[325177087,1714549839284,-6939.61881558,0.00017934,2]
[325177088,1714549839294,-928.84070559,0.00017935,2]
[325177092,1714549839406,-3135.44755781,0.00018,7]
[325177093,1714549839416,-603.94471779,0.00018779,2]
[325177094,1714549839426,-2590.79776208,0.00018779,2]
[325177095,1714549839437,-272.87483722,0.0001878,2]
[325177096,1714549839452,-312.97578303,0.0001878,2]
[325177097,1714549839461,-1146.68101846,0.00018782,2]
[325177098,1714549839471,-844.41,0.00018865,3]
[325177099,1714549839480,-562.93,0.00018866,3]
[325177100,1714549839489,-281.46,0.00018866,3]
[325177101,1714549839499,-276.46437539,0.00018873,2]
[325177102,1714549839509,-981.8517699,0.00018873,2]
[325177103,1714549839518,-648.00564767,0.00018873,2]
[325177104,1714549839528,-155.66474713,0.00018873,2]
[325177105,1714549839538,-155.36566067,0.00018873,2]
[325177106,1714549839547,-154.76784823,0.00018873,2]
[325177107,1714549839557,-254.47790924,0.00018873,2]
[325177108,1714549839566,-379.24165137,0.00018873,2]
[325177109,1714549839576,-154.76784823,0.00018873,2]
[325177110,1714549839586,-1091.78088148,0.00018873,2]
[325177111,1714549839595,-207.66269812,0.00018873,2]
[325177112,1714549839605,-181.10063492,0.00018873,2]
[325177113,1714549839614,-156.15535135,0.00018873,2]
[325177114,1714549839624,-186.35993728,0.00018873,2]
[325177115,1714549839633,-154.78330338,0.00018874,2]
[325177116,1714549839642,-59226.73956329,0.00018875,2]
[325177117,1714549839652,-155.0008864,0.00018879,2]
[325177118,1714549839661,-194.38395876,0.00018879,2]
[325177119,1714549839671,-355.2230046,0.00018879,2]
[325177120,1714549839680,-1201.83215556,0.00018879,2]
[325177121,1714549839692,-155.15568607,0.00018879,2]
[325177122,1714549839702,-390.1844924,0.00018879,2]
[325177123,1714549839711,-154.89155736,0.00018879,2]
[325177124,1714549839720,-155.04587609,0.00018879,2]
[325177125,1714549839729,-155.10726606,0.00018879,2]
[325177126,1714549839738,-155.21596847,0.00018879,2]
[325177127,1714549839747,-164.36122365,0.00018879,2]
[325177128,1714549839757,-265.66488213,0.00018879,2]
[325177129,1714549839766,-155.771747,0.00018879,2]
[325177130,1714549839776,-172.5377641,0.00018879,2]
[325177131,1714549839786,-513.47404116,0.00018879,2]
[325177132,1714549839795,-190.59605249,0.00018879,2]
[325177133,1714549839805,-1175.11856753,0.00018879,2]
[325177134,1714549839816,-154.78330338,0.00018879,2]
[325177135,1714549839825,-409.34378337,0.00018879,2]
[325177136,1714549839834,-233.99013678,0.00018879,2]
[325177137,1714549839843,-154.86061308,0.00018879,2]
[325177138,1714549839853,-189.3964787,0.00018879,2]
[325177139,1714549839862,-206.5713795,0.00018879,2]
[325177140,1714549839871,-5146.74290088,0.00018879,2]
[325177141,1714549839880,-185.99365966,0.00018879,2]
[325177142,1714549839890,-468.31729524,0.0001888,2]
[325177143,1714549839900,-989.961457,0.00018885,2]
[325177144,1714549839909,-154.78330338,0.00018998,2]
[325177145,1714549839919,-974.55049665,0.00019,2]
[325177146,1714549839928,-500.0,0.00019178,2]
[325177147,1714549839938,-363.41004364,0.00019178,2]
[325177148,1714549839949,-500.0,0.00019178,2]
[325177149,1714549839959,-500.0,0.00019178,2]
[325177150,1714549839968,-500.0,0.00019178,2]
[325177151,1714549839977,-468.09354529,0.00019178,2]
[325177152,1714549839987,-500.0,0.00019178,2]
[325177153,1714549839996,-440.41092703,0.00019178,2]
[325177154,1714549840005,-500.0,0.00019178,2]
[325177155,1714549840015,-500.0,0.00019178,2]
[325177156,1714549840024,-500.0,0.00019178,2]
[325177157,1714549840034,-500.0,0.00019178,2]
[325177158,1714549840043,-500.0,0.00019178,2]
[325177159,1714549840053,-500.0,0.00019178,2]
[325177160,1714549840062,-500.0,0.00019178,2]
[325177161,1714549840071,-500.0,0.00019178,2]
[325177162,1714549840081,-500.0,0.00019178,2]
[325177163,1714549840090,-500.93519299,0.00019178,2]
[325177164,1714549840100,-500.0,0.00019178,2]
[325177165,1714549840109,-500.0,0.00019178,2]
[325177166,1714549840119,-500.0,0.00019178,2]
[325177167,1714549840128,-500.63222682,0.00019178,2]
[325177168,1714549840137,-500.0,0.00019178,2]
[325177169,1714549840147,-165.45608294,0.00019178,2]
[325177170,1714549840156,-500.0,0.00019178,2]
[325177171,1714549840166,-500.0,0.00019178,2]
[325177172,1714549840175,-500.0,0.00019178,2]
[325177173,1714549840185,-500.0,0.00019178,2]
[325177174,1714549840200,-500.0,0.00019178,2]
[325177175,1714549840209,-500.0,0.00019178,2]
[325177176,1714549840219,-494.5093743,0.00019178,2]
[325177177,1714549840230,-500.0,0.00019178,2]
[325177178,1714549840240,-500.0,0.00019178,2]
[325177179,1714549840250,-441.08955542,0.00019178,2]
[325177180,1714549840261,-500.0,0.00019178,2]
[325177181,1714549840271,-500.0,0.00019178,2]
[325177182,1714549840281,-382.7130029,0.00019178,2]
[325177183,1714549840291,-396.92347451,0.00019178,2]
[325177184,1714549840301,-500.0,0.00019178,2]
[325177185,1714549840310,-500.0,0.00019178,2]
[325177186,1714549840322,-500.0,0.00019178,2]
[325177187,1714549840336,-500.0,0.00019178,2]
[325177188,1714549840345,-500.0,0.00019178,2]
[325177189,1714549840356,-500.0,0.00019178,2]
[325177190,1714549840366,-500.0,0.00019178,2]
[325177191,1714549840377,-500.0,0.00019178,2]
[325177192,1714549840387,-500.0,0.00019178,2]
[325177193,1714549840396,-500.0,0.00019178,2]
[325177194,1714549840405,-500.0,0.00019178,2]
[325177195,1714549840417,-500.0,0.00019178,2]
[325177196,1714549840427,-500.0,0.00019178,2]
[325177197,1714549840437,-500.0,0.00019178,2]
[325177198,1714549840451,-500.0,0.00019178,2]
[325177199,1714549840460,-500.0,0.00019178,2]
[325177200,1714549840470,-500.0,0.00019178,2]
[325177201,1714549840479,-500.0,0.00019178,2]
[325177202,1714549840491,-500.0,0.00019178,2]
[325177203,1714549840502,-500.0,0.00019178,2]
[325177204,1714549840517,-500.0,0.00019178,2]
[325177205,1714549840527,-500.0,0.00019178,2]
[325177206,1714549840536,-500.0,0.00019178,2]
[325177207,1714549840546,-500.0,0.00019178,2]
[325177208,1714549840556,-500.0,0.00019178,2]
[325177209,1714549840570,-488.14936565,0.00019178,2]
[325177210,1714549840585,-500.0,0.00019178,2]
[325177211,1714549840595,-500.0,0.00019178,2]
[325177212,1714549840604,-500.0,0.00019178,2]
[325177213,1714549840614,-500.0,0.00019178,2]
[325177214,1714549840624,-500.0,0.00019178,2]
[325177215,1714549840634,-500.0,0.00019178,2]
[325177216,1714549840644,-500.0,0.00019178,2]
[325177217,1714549840654,-500.0,0.00019178,2]
[325177218,1714549840663,-160.545927,0.00019178,2]
[325177219,1714549840673,-919.61336806,0.00019745,2]
[325177220,1714549840682,-363.99130579,0.00019845,2]
[325177221,1714549840693,-154.73694719,0.00019845,2]
[325177222,1714549840705,-437.46994859,0.00019845,2]
[325177223,1714549840717,-3898.71416762,0.00019848,2]
[325177224,1714549840727,-155.25803282,0.00019998,2]
[325177225,1714549840736,-291.68633302,0.00019998,2]
[325177226,1714549840746,-550.78522804,0.00019998,2]
[325177227,1714549840756,-2456.5137836,0.00019999,2]
[325177228,1714549840766,-5461.4995396,0.0002,2]
[325177229,1714549840781,-80000.0,0.0002,2]
[325177230,1714549840793,-1564.25196696,0.0002,2]
[325177231,1714549840803,-67435.2931103,0.0002,2]
[325177232,1714549840817,-330.04006716,0.0002,2]
[325177233,1714549840827,-287.74716689,0.0002,4]
[325177234,1714549840837,-241.71320654,0.0002,2]
[325177235,1714549840846,-1125.86,0.00020236,3]
[325177236,1714549840856,-562.92,0.00020236,3]
[325177237,1714549840866,-5998.06874937,0.0002081,2]
[325177238,1714549840875,-181.69212126,0.00020909,2]
[325177239,1714549840884,-719.40985607,0.00020911,2]
[325177240,1714549840894,-302.09626077,0.00020911,2]
[325177241,1714549840903,-475.3346953,0.00020911,2]
[325177242,1714549840913,-29130.41986767,0.00020913,2]
[325177243,1714549840923,-10653.1519356,0.00020913,2]
[325177244,1714549840932,-10000.0,0.00021918,2]
[325177245,1714549840942,-615.95093679,0.00024748,2]
[325177246,1714549840952,-10000.0,0.00025,2]
[325177247,1714549840961,-1146.68101841,0.00025227,2]
[325177248,1714549840971,-197.59272048,0.000274,2]
[325177249,1714549840981,-819.05290637,0.00028006,2]
[325177250,1714549840991,-615.95093679,0.00029748,2]
[325177251,1714549841000,-2686.858814,0.00029806,2]
[325177252,1714549841009,-1146.68101841,0.00031673,5]
[325177253,1714549841019,-168.26326223,0.0003227,2]
[325177254,1714549841028,-160.590219,0.0003237,2]
[325177255,1714549841038,-500.0,0.00032876,2]
[325177256,1714549841048,-545.8903973,0.00032876,2]
[325177257,1714549841059,-629.18294798,0.00032876,2]